[Event "Titled Tuesday Blitz August 15 Late 2023"]
[White "Saucey, Michel"]
[Black "Hajiyev, Kanan"]
[WhiteFideId "601845"]
[BlackFideId "13404148"]
[WhiteElo "2264"]
[BlackElo "2560"]
[Result "1/2-1/2"]
[Round "1"]
[TimeControl "180+1"]
[Date "2023.08.15"]
[WhiteClock "0:00:12"]
[BlackClock "0:00:14"]
[Board "139"]

1. d4 {[%clk 0:03:00]}  Nf6 {[%clk 0:02:55]} 2. Nf3 {[%clk 0:03:00]}  d5 {[%clk 0:02:54]} 3. c4 {[%clk 0:02:59]}  e6 {[%clk 0:02:53]} 4. Nc3 {[%clk 0:02:58]}  Be7 {[%clk 0:02:52]} 5. Bg5 {[%clk 0:02:57]}  O-O {[%clk 0:02:51]} 6. e3 {[%clk 0:02:57]}  h6 {[%clk 0:02:45]} 7. Bh4 {[%clk 0:02:57]}  Ne4 {[%clk 0:02:42]} 8. Bxe7 {[%clk 0:02:55]}  Qxe7 {[%clk 0:02:43]} 9. Rc1 {[%clk 0:02:54]}  c6 {[%clk 0:02:38]} 10. Bd3 {[%clk 0:02:51]}  Nxc3 {[%clk 0:02:38]} 11. Rxc3 {[%clk 0:02:51]}  dxc4 {[%clk 0:02:38]} 12. Bxc4 {[%clk 0:02:50]}  Nd7 {[%clk 0:02:39]} 13. O-O {[%clk 0:02:46]}  e5 {[%clk 0:02:37]} 14. Bb3 {[%clk 0:02:46]}  e4 {[%clk 0:02:30]} 15. Nd2 {[%clk 0:02:44]}  Kh8 {[%clk 0:02:28]} 16. f3 {[%clk 0:02:38]}  exf3 {[%clk 0:02:16]} 17. Qxf3 {[%clk 0:02:35]}  Nf6 {[%clk 0:02:09]} 18. e4 {[%clk 0:02:00]}  Bg4 {[%clk 0:02:08]} 19. Qf4 {[%clk 0:01:27]}  Bh5 {[%clk 0:01:57]} 20. e5 {[%clk 0:01:24]}  Nd5 {[%clk 0:01:53]} 21. Bxd5 {[%clk 0:01:23]}  cxd5 {[%clk 0:01:54]} 22. Nf3 {[%clk 0:01:19]}  Rac8 {[%clk 0:01:49]} 23. Nh4 {[%clk 0:01:09]}  Rxc3 {[%clk 0:01:42]} 24. bxc3 {[%clk 0:01:09]}  Qg5 {[%clk 0:01:22]} 25. Nf5 {[%clk 0:01:02]}  Qxf4 {[%clk 0:01:14]} 26. Rxf4 {[%clk 0:01:01]}  Rc8 {[%clk 0:01:12]} 27. Nd6 {[%clk 0:01:00]}  Rxc3 {[%clk 0:01:10]} 28. g4 {[%clk 0:00:48]}  Bg6 {[%clk 0:01:08]} 29. Nxf7+ {[%clk 0:00:47]}  Kg8 {[%clk 0:01:09]} 30. Nd6 {[%clk 0:00:46]}  Rc2 {[%clk 0:00:55]} 31. Nf5 {[%clk 0:00:45]}  Bxf5 {[%clk 0:00:52]} 32. gxf5 {[%clk 0:00:45]}  Rxa2 {[%clk 0:00:52]} 33. f6 {[%clk 0:00:42]}  gxf6 {[%clk 0:00:48]} 34. Rxf6 {[%clk 0:00:42]}  Rd2 {[%clk 0:00:49]} 35. Rxh6 {[%clk 0:00:27]}  Rxd4 {[%clk 0:00:48]} 36. Rd6 {[%clk 0:00:28]}  a5 {[%clk 0:00:40]} 37. Rd8+ {[%clk 0:00:23]}  Kf7 {[%clk 0:00:39]} 38. Rd7+ {[%clk 0:00:24]}  Ke6 {[%clk 0:00:39]} 39. Rxb7 {[%clk 0:00:24]}  Kxe5 {[%clk 0:00:39]} 40. Ra7 {[%clk 0:00:23]}  Ra4 {[%clk 0:00:38]} 41. Kg2 {[%clk 0:00:23]}  d4 {[%clk 0:00:36]} 42. h4 {[%clk 0:00:23]}  Kf4 {[%clk 0:00:33]} 43. h5 {[%clk 0:00:20]}  Ra2+ {[%clk 0:00:30]} 44. Kf1 {[%clk 0:00:18]}  Kg5 {[%clk 0:00:31]} 45. Rd7 {[%clk 0:00:16]}  Ra4 {[%clk 0:00:27]} 46. Ke2 {[%clk 0:00:16]}  Kxh5 {[%clk 0:00:27]} 47. Kd3 {[%clk 0:00:17]}  Ra1 {[%clk 0:00:24]} 48. Rxd4 {[%clk 0:00:15]}  Kg5 {[%clk 0:00:21]} 49. Kc3 {[%clk 0:00:14]}  Kf5 {[%clk 0:00:20]} 50. Rd8 {[%clk 0:00:14]}  Ke5 {[%clk 0:00:20]} 51. Kb3 {[%clk 0:00:14]}  Rb1+ {[%clk 0:00:19]} 52. Ka4 {[%clk 0:00:14]}  Ra1+ {[%clk 0:00:19]} 53. Kb3 {[%clk 0:00:13]}  Rc1 {[%clk 0:00:15]} 54. Ka4 {[%clk 0:00:13]}  Ra1+ {[%clk 0:00:14]} 55. Kb3 {[%clk 0:00:12]} 1/2-1/2


[Site "https://www.chess.com"]

[Event "Titled Tuesday Blitz August 15 Late 2023"]
[White "Sreyas Payyappat"]
[Black "Garrido, Denis"]
[WhiteFideId "46674969"]
[BlackFideId "601217"]
[WhiteElo "2559"]
[BlackElo "2259"]
[Result "1-0"]
[Round "1"]
[TimeControl "180+1"]
[Date "2023.08.15"]
[WhiteClock "0:00:24"]
[BlackClock "0:00:52"]
[Board "140"]

1. e4 {[%clk 0:03:00]}  e6 {[%clk 0:02:59]} 2. d4 {[%clk 0:03:00]}  d5 {[%clk 0:03:00]} 3. Nc3 {[%clk 0:03:00]}  Nf6 {[%clk 0:03:00]} 4. Bg5 {[%clk 0:02:59]}  dxe4 {[%clk 0:03:00]} 5. Nxe4 {[%clk 0:02:58]}  Be7 {[%clk 0:03:00]} 6. Bxf6 {[%clk 0:02:57]}  gxf6 {[%clk 0:03:00]} 7. Nf3 {[%clk 0:02:58]}  f5 {[%clk 0:03:00]} 8. Ned2 {[%clk 0:02:58]}  a6 {[%clk 0:03:00]} 9. Nc4 {[%clk 0:02:58]}  Bf6 {[%clk 0:02:59]} 10. c3 {[%clk 0:02:58]}  Nd7 {[%clk 0:02:58]} 11. Bd3 {[%clk 0:02:58]}  b5 {[%clk 0:02:58]} 12. Ne3 {[%clk 0:02:56]}  Bb7 {[%clk 0:02:56]} 13. d5 {[%clk 0:02:52]}  Nc5 {[%clk 0:02:55]} 14. Bc2 {[%clk 0:02:50]}  O-O {[%clk 0:02:42]} 15. O-O {[%clk 0:02:32]}  Kh8 {[%clk 0:02:39]} 16. Nd4 {[%clk 0:02:26]}  Rg8 {[%clk 0:02:25]} 17. b4 {[%clk 0:02:12]}  Bxd4 {[%clk 0:02:23]} 18. Qxd4+ {[%clk 0:02:10]}  f6 {[%clk 0:02:19]} 19. Qxc5 {[%clk 0:02:05]}  f4 {[%clk 0:02:17]} 20. Nd1 {[%clk 0:01:53]}  Bxd5 {[%clk 0:02:15]} 21. f3 {[%clk 0:01:53]}  Rg5 {[%clk 0:02:04]} 22. Qd4 {[%clk 0:01:48]}  Qe7 {[%clk 0:01:59]} 23. Nb2 {[%clk 0:01:44]}  Rag8 {[%clk 0:01:58]} 24. Rf2 {[%clk 0:01:35]}  Qg7 {[%clk 0:01:54]} 25. Qd2 {[%clk 0:00:48]}  Bxf3 {[%clk 0:01:52]} 26. Kf1 {[%clk 0:00:41]}  Bxg2+ {[%clk 0:01:51]} 27. Ke1 {[%clk 0:00:40]}  Re5+ {[%clk 0:01:44]} 28. Kd1 {[%clk 0:00:36]}  Bf3+ {[%clk 0:01:42]} 29. Kc1 {[%clk 0:00:35]}  Qg1+ {[%clk 0:01:41]} 30. Nd1 {[%clk 0:00:36]}  Qh1 {[%clk 0:01:20]} 31. Kb2 {[%clk 0:00:27]}  Rg1 {[%clk 0:01:18]} 32. Qxf4 {[%clk 0:00:27]}  Bxd1 {[%clk 0:00:54]} 33. Qxf6+ {[%clk 0:00:26]}  Rg7 {[%clk 0:00:52]} 34. Rxd1 {[%clk 0:00:24]} 1-0


[Site "https://www.chess.com"]

[Event "Titled Tuesday Blitz August 15 Late 2023"]
[White "LuxLinster"]
[Black "Chor, Kevin"]
[BlackFideId "2090740"]
[WhiteElo "2253"]
[BlackElo "2556"]
[Result "0-1"]
[Round "1"]
[TimeControl "180+1"]
[Date "2023.08.15"]
[WhiteClock "0:00:00"]
[BlackClock "0:00:03"]
[Board "143"]

1. d4 {[%clk 0:02:58]}  Nf6 {[%clk 0:02:59]} 2. c4 {[%clk 0:02:58]}  g6 {[%clk 0:02:59]} 3. Nc3 {[%clk 0:02:56]}  Bg7 {[%clk 0:02:59]} 4. e4 {[%clk 0:02:56]}  d6 {[%clk 0:03:00]} 5. f4 {[%clk 0:02:56]}  O-O {[%clk 0:03:00]} 6. Nf3 {[%clk 0:02:56]}  e5 {[%clk 0:02:48]} 7. fxe5 {[%clk 0:02:52]}  dxe5 {[%clk 0:02:48]} 8. d5 {[%clk 0:02:52]}  Na6 {[%clk 0:02:36]} 9. Bd3 {[%clk 0:02:51]}  Nc5 {[%clk 0:02:36]} 10. O-O {[%clk 0:02:51]}  a5 {[%clk 0:02:33]} 11. Bg5 {[%clk 0:02:44]}  Qe8 {[%clk 0:02:29]} 12. Qd2 {[%clk 0:02:29]}  Nh5 {[%clk 0:02:24]} 13. Rae1 {[%clk 0:02:21]}  c6 {[%clk 0:02:12]} 14. Kh1 {[%clk 0:02:12]}  f5 {[%clk 0:01:45]} 15. exf5 {[%clk 0:01:34]}  gxf5 {[%clk 0:01:43]} 16. Bc2 {[%clk 0:01:34]}  e4 {[%clk 0:01:34]} 17. Nd4 {[%clk 0:01:15]}  Qg6 {[%clk 0:01:33]} 18. Be3 {[%clk 0:01:10]}  Bd7 {[%clk 0:00:59]} 19. Nxf5 {[%clk 0:00:56]}  Bxf5 {[%clk 0:00:55]} 20. Bxc5 {[%clk 0:00:56]}  e3 {[%clk 0:00:50]} 21. Qxe3 {[%clk 0:00:39]}  Bxc2 {[%clk 0:00:45]} 22. Bxf8 {[%clk 0:00:39]}  Rxf8 {[%clk 0:00:42]} 23. Rxf8+ {[%clk 0:00:33]}  Bxf8 {[%clk 0:00:43]} 24. dxc6 {[%clk 0:00:28]}  bxc6 {[%clk 0:00:41]} 25. Qe6+ {[%clk 0:00:25]}  Kg7 {[%clk 0:00:26]} 26. Qxg6+ {[%clk 0:00:24]}  hxg6 {[%clk 0:00:20]} 27. Re6 {[%clk 0:00:25]}  c5 {[%clk 0:00:17]} 28. Ra6 {[%clk 0:00:20]}  Nf4 {[%clk 0:00:13]} 29. Rxa5 {[%clk 0:00:17]}  Nd3 {[%clk 0:00:13]} 30. b3 {[%clk 0:00:12]}  Bd6 {[%clk 0:00:13]} 31. g3 {[%clk 0:00:10]}  Be5 {[%clk 0:00:12]} 32. Nd5 {[%clk 0:00:09]}  Ne1 {[%clk 0:00:06]} 33. Kg1 {[%clk 0:00:08]}  Bd4+ {[%clk 0:00:03]} 34. Kf1 {[%clk 0:00:08]}  Nf3 {[%clk 0:00:04]} 35. Ke2 {[%clk 0:00:06]}  Nxh2 {[%clk 0:00:04]} 36. Ra7+ {[%clk 0:00:05]}  Kh6 {[%clk 0:00:04]} 37. Ne3 {[%clk 0:00:04]}  Be4 {[%clk 0:00:03]} 38. a4 {[%clk 0:00:03]}  Bb1 {[%clk 0:00:02]} 39. a5 {[%clk 0:00:02]}  Ba2 {[%clk 0:00:03]} 40. Rb7 {[%clk 0:00:03]}  Bxe3 {[%clk 0:00:02]} 41. Kxe3 {[%clk 0:00:02]}  Nf1+ {[%clk 0:00:03]} 42. Kd3 {[%clk 0:00:02]}  Nxg3 {[%clk 0:00:03]} 43. a6 {[%clk 0:00:00]}  Bb1+ {[%clk 0:00:03]} 0-1


[Site "https://www.chess.com"]

[Event "Titled Tuesday Blitz August 15 Late 2023"]
[White "Vaglio Munoz, Jaime"]
[Black "Bilan, Danila"]
[WhiteFideId "6500145"]
[BlackFideId "24161918"]
[WhiteElo "2242"]
[BlackElo "2552"]
[Result "0-1"]
[Round "1"]
[TimeControl "180+1"]
[Date "2023.08.15"]
[WhiteClock "0:01:57"]
[BlackClock "0:00:22"]
[Board "147"]

1. Nf3 {[%clk 0:03:00]}  d5 {[%clk 0:03:00]} 2. c4 {[%clk 0:03:00]}  c6 {[%clk 0:03:00]} 3. b3 {[%clk 0:03:00]}  Nf6 {[%clk 0:03:00]} 4. Bb2 {[%clk 0:03:00]}  Bf5 {[%clk 0:03:01]} 5. g3 {[%clk 0:03:00]}  e6 {[%clk 0:03:00]} 6. Bg2 {[%clk 0:03:00]}  Nbd7 {[%clk 0:03:00]} 7. O-O {[%clk 0:03:00]}  h6 {[%clk 0:03:01]} 8. d3 {[%clk 0:03:00]}  Bc5 {[%clk 0:03:01]} 9. h3 {[%clk 0:02:59]}  Qc7 {[%clk 0:03:00]} 10. a3 {[%clk 0:02:59]}  a5 {[%clk 0:02:40]} 11. Bc3 {[%clk 0:02:58]}  Bb6 {[%clk 0:02:29]} 12. b4 {[%clk 0:02:56]}  axb4 {[%clk 0:02:23]} 13. axb4 {[%clk 0:02:57]}  Rxa1 {[%clk 0:02:23]} 14. Bxa1 {[%clk 0:02:58]}  O-O {[%clk 0:02:14]} 15. c5 {[%clk 0:02:58]}  Ba7 {[%clk 0:02:14]} 16. Nd4 {[%clk 0:02:57]}  Bg6 {[%clk 0:02:10]} 17. Nd2 {[%clk 0:02:51]}  b6 {[%clk 0:02:08]} 18. cxb6 {[%clk 0:02:49]}  Bxb6 {[%clk 0:02:07]} 19. N2b3 {[%clk 0:02:49]}  e5 {[%clk 0:01:50]} 20. Nf3 {[%clk 0:02:49]}  e4 {[%clk 0:01:46]} 21. dxe4 {[%clk 0:02:46]}  Nxe4 {[%clk 0:01:44]} 22. Nh4 {[%clk 0:02:46]}  Qxg3 {[%clk 0:01:39]} 23. Nxg6 {[%clk 0:02:21]}  Bxf2+ {[%clk 0:01:23]} 24. Kh1 {[%clk 0:02:20]}  fxg6 {[%clk 0:01:22]} 25. Qd3 {[%clk 0:02:14]}  Qxd3 {[%clk 0:01:15]} 26. exd3 {[%clk 0:02:13]}  Ng3+ {[%clk 0:01:15]} 27. Kh2 {[%clk 0:02:14]}  Nxf1+ {[%clk 0:01:16]} 28. Bxf1 {[%clk 0:02:14]}  Be1 {[%clk 0:01:12]} 29. Kg1 {[%clk 0:02:12]}  Bxb4 {[%clk 0:01:12]} 30. d4 {[%clk 0:02:12]}  Nf6 {[%clk 0:01:02]} 31. Bd3 {[%clk 0:02:10]}  Ne4 {[%clk 0:00:59]} 32. Nc5 {[%clk 0:02:10]}  Nxc5 {[%clk 0:00:54]} 33. dxc5 {[%clk 0:02:11]}  Bxc5+ {[%clk 0:00:46]} 34. Kg2 {[%clk 0:02:11]}  Kf7 {[%clk 0:00:37]} 35. h4 {[%clk 0:02:09]}  d4 {[%clk 0:00:35]} 36. Bb2 {[%clk 0:02:08]}  Ra8 {[%clk 0:00:30]} 37. Bc4+ {[%clk 0:02:08]}  Kf6 {[%clk 0:00:30]} 38. Kf3 {[%clk 0:02:08]}  Ra4 {[%clk 0:00:27]} 39. Bg8 {[%clk 0:02:08]}  g5 {[%clk 0:00:26]} 40. h5 {[%clk 0:02:07]}  Bd6 {[%clk 0:00:24]} 41. Bh7 {[%clk 0:01:59]}  Be5 {[%clk 0:00:24]} 42. Bg6 {[%clk 0:01:59]}  c5 {[%clk 0:00:23]} 43. Ke4 {[%clk 0:01:58]}  d3+ {[%clk 0:00:22]} 44. Kxd3 {[%clk 0:01:59]}  Bxb2 {[%clk 0:00:23]} 45. Kc2 {[%clk 0:01:58]}  Be5 {[%clk 0:00:23]} 46. Be8 {[%clk 0:01:58]}  Rd4 {[%clk 0:00:22]} 47. Bg6 {[%clk 0:01:57]}  g4 {[%clk 0:00:23]} 48. Be8 {[%clk 0:01:57]}  g3 {[%clk 0:00:24]} 49. Bc6 {[%clk 0:01:57]}  Bf4 {[%clk 0:00:24]} 50. Kc3 {[%clk 0:01:57]}  Kg5 {[%clk 0:00:23]} 51. Bg2 {[%clk 0:01:56]}  Kxh5 {[%clk 0:00:23]} 52. Bc6 {[%clk 0:01:55]}  Kg5 {[%clk 0:00:23]} 53. Be8 {[%clk 0:01:56]}  h5 {[%clk 0:00:23]} 54. Bc6 {[%clk 0:01:57]}  h4 {[%clk 0:00:23]} 55. Bg2 {[%clk 0:01:57]}  Kg4 {[%clk 0:00:24]} 56. Bd5 {[%clk 0:01:57]}  Rxd5 {[%clk 0:00:23]} 57. Kc4 {[%clk 0:01:57]}  Re5 {[%clk 0:00:23]} 58. Kd3 {[%clk 0:01:57]}  c4+ {[%clk 0:00:23]} 59. Kxc4 {[%clk 0:01:56]}  g2 {[%clk 0:00:23]} 60. Kd3 {[%clk 0:01:55]}  g1=Q {[%clk 0:00:23]} 61. Kc4 {[%clk 0:01:55]}  Qc1+ {[%clk 0:00:21]} 62. Kd3 {[%clk 0:01:55]}  Re3+ {[%clk 0:00:19]} 63. Kd4 {[%clk 0:01:56]}  Qc3+ {[%clk 0:00:20]} 64. Kd5 {[%clk 0:01:56]}  Re5+ {[%clk 0:00:20]} 65. Kd6 {[%clk 0:01:56]}  Qc5+ {[%clk 0:00:21]} 66. Kd7 {[%clk 0:01:57]}  Re7+ {[%clk 0:00:22]} 67. Kd8 {[%clk 0:01:57]}  Qc7# {[%clk 0:00:22]} 0-1


[Site "https://www.chess.com"]

[Event "Titled Tuesday Blitz August 15 Late 2023"]
[White "Lima, Kleyton Alcantara"]
[Black "Zampronha, Wladimir Camilo"]
[WhiteFideId "22718397"]
[BlackFideId "2103087"]
[WhiteElo "2541"]
[BlackElo "2231"]
[Result "1-0"]
[Round "1"]
[TimeControl "180+1"]
[Date "2023.08.15"]
[WhiteClock "0:01:40"]
[BlackClock "0:00:53"]
[Board "152"]

1. e4 {[%clk 0:03:00]}  c5 {[%clk 0:02:59]} 2. Nf3 {[%clk 0:03:00]}  e6 {[%clk 0:02:59]} 3. d4 {[%clk 0:03:00]}  cxd4 {[%clk 0:03:00]} 4. Nxd4 {[%clk 0:03:00]}  Nc6 {[%clk 0:03:01]} 5. Nc3 {[%clk 0:03:01]}  Qc7 {[%clk 0:02:59]} 6. Qd3 {[%clk 0:02:59]}  a6 {[%clk 0:02:54]} 7. Nxc6 {[%clk 0:02:58]}  bxc6 {[%clk 0:02:52]} 8. Qg3 {[%clk 0:02:57]}  e5 {[%clk 0:02:41]} 9. f4 {[%clk 0:02:51]}  d6 {[%clk 0:02:31]} 10. Bc4 {[%clk 0:02:39]}  Be6 {[%clk 0:02:10]} 11. Bxe6 {[%clk 0:02:33]}  fxe6 {[%clk 0:02:11]} 12. fxe5 {[%clk 0:02:33]}  dxe5 {[%clk 0:02:10]} 13. O-O {[%clk 0:02:28]}  Nf6 {[%clk 0:02:10]} 14. Be3 {[%clk 0:02:22]}  Rb8 {[%clk 0:02:08]} 15. b3 {[%clk 0:02:20]}  Bb4 {[%clk 0:02:05]} 16. Na4 {[%clk 0:02:02]}  O-O {[%clk 0:02:00]} 17. Qh3 {[%clk 0:01:47]}  Nxe4 {[%clk 0:01:38]} 18. Qxe6+ {[%clk 0:01:39]}  Kh8 {[%clk 0:01:39]} 19. Rxf8+ {[%clk 0:01:40]}  Rxf8 {[%clk 0:00:53]} 20. Qc4 {[%clk 0:01:40]} 1-0


[Site "https://www.chess.com"]

[Event "Titled Tuesday Blitz August 15 Late 2023"]
[White "Fernandez Bustamante, Leancy B."]
[Black "Kupervaser, Erez"]
[WhiteFideId "3523870"]
[BlackFideId "2814587"]
[WhiteElo "2228"]
[BlackElo "2535"]
[Result "0-1"]
[Round "1"]
[TimeControl "180+1"]
[Date "2023.08.15"]
[WhiteClock "0:00:00"]
[BlackClock "0:00:49"]
[Board "153"]

1. e4 {[%clk 0:03:00]}  c5 {[%clk 0:02:59]} 2. Nf3 {[%clk 0:02:53]}  Nc6 {[%clk 0:03:00]} 3. Bb5 {[%clk 0:02:49]}  g6 {[%clk 0:03:00]} 4. Bxc6 {[%clk 0:02:48]}  bxc6 {[%clk 0:02:59]} 5. O-O {[%clk 0:02:49]}  Bg7 {[%clk 0:02:59]} 6. Re1 {[%clk 0:02:49]}  d6 {[%clk 0:02:58]} 7. h3 {[%clk 0:02:50]}  Nh6 {[%clk 0:02:58]} 8. c3 {[%clk 0:02:46]}  O-O {[%clk 0:02:56]} 9. d4 {[%clk 0:02:45]}  cxd4 {[%clk 0:02:56]} 10. cxd4 {[%clk 0:02:44]}  f6 {[%clk 0:02:57]} 11. Qb3+ {[%clk 0:02:36]}  Nf7 {[%clk 0:02:54]} 12. e5 {[%clk 0:02:29]}  Qc7 {[%clk 0:02:31]} 13. Bf4 {[%clk 0:02:10]}  Rb8 {[%clk 0:02:30]} 14. Qc2 {[%clk 0:01:59]}  fxe5 {[%clk 0:01:53]} 15. dxe5 {[%clk 0:01:54]}  Nxe5 {[%clk 0:01:54]} 16. Bxe5 {[%clk 0:01:44]}  dxe5 {[%clk 0:01:52]} 17. Nbd2 {[%clk 0:01:40]}  Be6 {[%clk 0:01:29]} 18. Rac1 {[%clk 0:01:22]}  Bd5 {[%clk 0:01:23]} 19. b3 {[%clk 0:01:18]}  Rf4 {[%clk 0:01:13]} 20. Qc5 {[%clk 0:01:14]}  Qd6 {[%clk 0:01:04]} 21. Re3 {[%clk 0:01:00]}  Rbf8 {[%clk 0:00:59]} 22. Qxa7 {[%clk 0:00:48]}  e4 {[%clk 0:00:55]} 23. Nh2 {[%clk 0:00:29]}  Rxf2 {[%clk 0:00:49]} 24. Nxe4 {[%clk 0:00:23]}  Bxe4 {[%clk 0:00:49]} 25. Rxe4 {[%clk 0:00:00]}  Qd2 {[%clk 0:00:49]} 0-1


[Site "https://www.chess.com"]

[Event "Titled Tuesday Blitz August 15 Late 2023"]
[White "Osmak, Yuliia"]
[Black "Alexikov, Alexander"]
[WhiteFideId "14101602"]
[BlackFideId "14103958"]
[WhiteElo "2533"]
[BlackElo "2227"]
[Result "1-0"]
[Round "1"]
[TimeControl "180+1"]
[Date "2023.08.15"]
[WhiteClock "0:02:25"]
[BlackClock "0:00:08"]
[Board "154"]

1. Nf3 {[%clk 0:02:59]}  c5 {[%clk 0:02:56]} 2. b3 {[%clk 0:02:59]}  Nc6 {[%clk 0:02:54]} 3. Bb2 {[%clk 0:03:00]}  d6 {[%clk 0:02:52]} 4. e3 {[%clk 0:02:59]}  Bd7 {[%clk 0:02:49]} 5. d4 {[%clk 0:02:59]}  e6 {[%clk 0:02:40]} 6. c4 {[%clk 0:02:58]}  Nf6 {[%clk 0:02:39]} 7. d5 {[%clk 0:02:56]}  exd5 {[%clk 0:02:37]} 8. cxd5 {[%clk 0:02:57]}  Nb4 {[%clk 0:02:23]} 9. Nc3 {[%clk 0:02:57]}  Qa5 {[%clk 0:02:18]} 10. e4 {[%clk 0:02:49]}  Be7 {[%clk 0:01:50]} 11. a3 {[%clk 0:02:46]}  Na6 {[%clk 0:01:49]} 12. Bd3 {[%clk 0:02:43]}  O-O {[%clk 0:01:47]} 13. O-O {[%clk 0:02:42]}  Rfe8 {[%clk 0:01:46]} 14. e5 {[%clk 0:02:35]}  dxe5 {[%clk 0:01:43]} 15. Nxe5 {[%clk 0:02:36]}  Rad8 {[%clk 0:01:36]} 16. Nc4 {[%clk 0:02:35]}  Qc7 {[%clk 0:00:43]} 17. d6 {[%clk 0:02:35]}  Bxd6 {[%clk 0:00:43]} 18. Nxd6 {[%clk 0:02:36]}  Re7 {[%clk 0:00:31]} 19. Ncb5 {[%clk 0:02:26]}  Qb8 {[%clk 0:00:21]} 20. Bxf6 {[%clk 0:02:25]}  gxf6 {[%clk 0:00:08]} 21. Qh5 {[%clk 0:02:25]} 1-0


[Site "https://www.chess.com"]

[Event "Titled Tuesday Blitz August 15 Late 2023"]
[White "Santos Flores, Alberto"]
[Black "Andreassen, Lars"]
[WhiteFideId "3601234"]
[BlackFideId "1504878"]
[WhiteElo "2531"]
[BlackElo "2223"]
[Result "1-0"]
[Round "1"]
[TimeControl "180+1"]
[Date "2023.08.15"]
[WhiteClock "0:01:17"]
[BlackClock "0:01:47"]
[Board "156"]

1. e4 {[%clk 0:03:00]}  d6 {[%clk 0:02:59]} 2. d4 {[%clk 0:03:00]}  Nf6 {[%clk 0:02:59]} 3. Nc3 {[%clk 0:03:00]}  e5 {[%clk 0:03:00]} 4. Nf3 {[%clk 0:03:00]}  Nbd7 {[%clk 0:02:58]} 5. Bc4 {[%clk 0:03:00]}  Be7 {[%clk 0:02:59]} 6. O-O {[%clk 0:03:00]}  O-O {[%clk 0:02:58]} 7. Re1 {[%clk 0:03:00]}  exd4 {[%clk 0:02:57]} 8. Nxd4 {[%clk 0:03:00]}  Ne5 {[%clk 0:02:57]} 9. Bf1 {[%clk 0:02:57]}  Bg4 {[%clk 0:02:57]} 10. f3 {[%clk 0:02:55]}  Bh5 {[%clk 0:02:57]} 11. h3 {[%clk 0:02:46]}  h6 {[%clk 0:02:55]} 12. g4 {[%clk 0:02:42]}  Bg6 {[%clk 0:02:55]} 13. f4 {[%clk 0:02:42]}  Nc6 {[%clk 0:02:53]} 14. Bg2 {[%clk 0:02:40]}  Nxd4 {[%clk 0:02:51]} 15. Qxd4 {[%clk 0:02:39]}  c5 {[%clk 0:02:51]} 16. Qd1 {[%clk 0:02:34]}  a6 {[%clk 0:02:48]} 17. a4 {[%clk 0:02:32]}  Rb8 {[%clk 0:02:45]} 18. a5 {[%clk 0:02:22]}  Nd7 {[%clk 0:02:26]} 19. Nd5 {[%clk 0:02:18]}  Bh4 {[%clk 0:02:23]} 20. Rf1 {[%clk 0:02:11]}  f6 {[%clk 0:02:23]} 21. Ne3 {[%clk 0:01:53]}  Re8 {[%clk 0:02:23]} 22. Qxd6 {[%clk 0:01:51]}  Bxe4 {[%clk 0:02:16]} 23. Bxe4 {[%clk 0:01:50]}  Nf8 {[%clk 0:02:07]} 24. Qxd8 {[%clk 0:01:47]}  Rbxd8 {[%clk 0:02:08]} 25. Bf3 {[%clk 0:01:39]}  Ne6 {[%clk 0:02:07]} 26. Bd5 {[%clk 0:01:29]}  Kh8 {[%clk 0:02:03]} 27. c3 {[%clk 0:01:27]}  Nc7 {[%clk 0:01:59]} 28. Bxb7 {[%clk 0:01:24]}  g5 {[%clk 0:01:55]} 29. Nf5 {[%clk 0:01:23]}  Ne6 {[%clk 0:01:48]} 30. Nxh4 {[%clk 0:01:19]}  gxh4 {[%clk 0:01:48]} 31. f5 {[%clk 0:01:19]}  Ng5 {[%clk 0:01:47]} 32. Bxg5 {[%clk 0:01:19]}  hxg5 {[%clk 0:01:48]} 33. Bxa6 {[%clk 0:01:18]}  Re2 {[%clk 0:01:47]} 34. Bxe2 {[%clk 0:01:17]} 1-0


[Site "https://www.chess.com"]

[Event "Titled Tuesday Blitz August 15 Late 2023"]
[White "olackza"]
[Black "ArtemDyachuk"]
[WhiteElo "2199"]
[BlackElo "2527"]
[Result "0-1"]
[Round "1"]
[TimeControl "180+1"]
[Date "2023.08.15"]
[WhiteClock "0:00:06"]
[BlackClock "0:01:47"]
[Board "159"]

1. e4 {[%clk 0:02:59]}  c6 {[%clk 0:03:00]} 2. d4 {[%clk 0:02:58]}  d5 {[%clk 0:03:00]} 3. Nc3 {[%clk 0:02:57]}  dxe4 {[%clk 0:03:00]} 4. Nxe4 {[%clk 0:02:58]}  Nf6 {[%clk 0:02:59]} 5. Ng3 {[%clk 0:02:55]}  g6 {[%clk 0:02:58]} 6. Nf3 {[%clk 0:02:55]}  Bg7 {[%clk 0:02:58]} 7. Be3 {[%clk 0:02:52]}  O-O {[%clk 0:02:58]} 8. Qd2 {[%clk 0:02:50]}  Re8 {[%clk 0:02:56]} 9. O-O-O {[%clk 0:02:43]}  Nbd7 {[%clk 0:02:46]} 10. h4 {[%clk 0:02:29]}  h5 {[%clk 0:02:39]} 11. Bc4 {[%clk 0:02:14]}  Nb6 {[%clk 0:02:38]} 12. Bb3 {[%clk 0:02:12]}  a5 {[%clk 0:02:28]} 13. a3 {[%clk 0:02:08]}  a4 {[%clk 0:02:27]} 14. Ba2 {[%clk 0:01:58]}  Bg4 {[%clk 0:02:27]} 15. Bh6 {[%clk 0:01:52]}  Bh8 {[%clk 0:02:23]} 16. Qd3 {[%clk 0:01:39]}  e6 {[%clk 0:02:13]} 17. Ne5 {[%clk 0:01:31]}  Bxd1 {[%clk 0:02:10]} 18. Rxd1 {[%clk 0:01:22]}  Bg7 {[%clk 0:01:59]} 19. Bg5 {[%clk 0:01:10]}  Qc7 {[%clk 0:01:59]} 20. f3 {[%clk 0:00:54]}  Rad8 {[%clk 0:01:57]} 21. Qe3 {[%clk 0:00:51]}  c5 {[%clk 0:01:55]} 22. dxc5 {[%clk 0:00:29]}  Rxd1+ {[%clk 0:01:53]} 23. Kxd1 {[%clk 0:00:30]}  Nfd5 {[%clk 0:01:53]} 24. Qd2 {[%clk 0:00:19]}  Qxe5 {[%clk 0:01:52]} 25. cxb6 {[%clk 0:00:17]}  Qxg3 {[%clk 0:01:52]} 26. c3 {[%clk 0:00:04]}  Bf6 {[%clk 0:01:46]} 27. Kc2 {[%clk 0:00:03]}  Bxg5 {[%clk 0:01:46]} 28. hxg5 {[%clk 0:00:04]}  Qxg2 {[%clk 0:01:46]} 29. Qxg2 {[%clk 0:00:04]}  Ne3+ {[%clk 0:01:46]} 30. Kd3 {[%clk 0:00:04]}  Nxg2 {[%clk 0:01:47]} 31. Ke2 {[%clk 0:00:05]}  Nf4+ {[%clk 0:01:47]} 32. Ke3 {[%clk 0:00:06]}  Nd5+ {[%clk 0:01:47]} 0-1


[Site "https://www.chess.com"]